bitfinex-derivatives/quotes_SOLF0:USTF0_20241217
["timestamp","ask_amount","ask_price","bid_price","bid_amount"]
[1734419685107,15.09563284,216.09,216.06,4.98480306]
[1734419685407,2.3141,216.08,216.03,4.4346]
[1734419685814,2.3141,216.08,216.04,7.29905374]
[1734419686208,2.3141,216.08,216.05,4.98425858]
[1734419686405,2.3141,216.08,216.04,2.3144]
[1734419686712,2.3141,216.08,216.05,4.98468848]
[1734419686903,2.3141,216.08,216.04,2.3144]
[1734419687105,2.3141,216.08,216.05,4.98443999]
[1734419687308,2.3141,216.08,216.06,4.98402221]
[1734419687512,2.3141,216.08,216.04,2.3144]
[1734419687713,2.3141,216.08,216.05,4.98391126]
[1734419687908,2.3141,216.08,216.06,4.98391126]
[1734419688211,7.23556377,216.09,216.04,2.3144]
[1734419688410,7.23556377,216.09,216.05,4.98356043]
[1734419688615,7.23556377,216.07,216.06,4.98356043]
[1734419689016,7.23556377,216.09,216.06,4.98356043]
[1734419689214,7.23556377,216.09,216.03,2.12]
[1734419689418,7.23556377,216.09,216.04,7.29829633]
[1734419689612,2.3141,216.08,216.04,7.29829633]
[1734419689909,2.3141,216.08,216.05,4.98389633]
[1734419690119,2.3141,216.08,216.06,4.98389633]
[1734419690312,2.3141,216.08,216.04,2.3144]
[1734419690513,2.3141,216.08,216.05,4.98346314]
[1734419690713,2.3141,216.08,216.06,4.98346314]
[1734419691017,9.54946377,216.09,216.04,2.3144]
[1734419691215,9.54946377,216.09,216.05,4.98412513]
[1734419691519,9.54946377,216.09,216.06,4.98412513]
[1734419691713,2.3141,216.08,216.04,2.3144]
[1734419691919,2.3141,216.08,216.05,4.98146736]
[1734419692223,2.3141,216.08,216.01,7.23556377]
[1734419692617,2.3141,216.08,216.02,4.98195601]
[1734419692920,2.3141,216.08,216.03,4.98195601]
[1734419693116,2.3141,216.08,216.04,4.98195601]
[1734419693419,2.3141,216.08,216.05,4.98195601]
[1734419693612,2.3141,216.08,216.06,4.98195601]
[1734419693818,2.3141,216.08,216.01,7.23556377]
[1734419694021,2.3141,216.08,216.02,4.98346878]
[1734419694318,2.3141,216.08,216.03,4.98346878]
[1734419694513,2.3141,216.08,216.04,7.10346878]
[1734419694720,9.54946377,216.1,216.05,4.98346878]
[1734419694917,7.23556377,216.1,216.06,4.98346878]
[1734419695115,7.23556377,216.1,216.07,4.98346878]
[1734419695316,2.3138,216.11,216.05,7.23556377]
[1734419695622,1.69992157,218.1,216.07,7.23556377]
[1734419695623,7.23556377,216.14,216.07,7.23556377]
[1734419695823,7.23556377,216.14,216.08,2.12]
[1734419696223,2.3136,216.12,216.08,4.434]
[1734419696413,2.3136,216.12,216.09,4.98549819]
[1734419696619,2.3136,216.12,216.08,4.434]
[1734419697324,2.3136,216.12,216.09,4.98735753]
[1734419697523,2.3138,216.11,216.08,2.12]
[1734419698120,7.23556377,216.1,216.08,2.12]
[1734419699417,7.23556377,216.1,216.06,4.4341]
[1734419699620,7.23556377,216.1,216.07,4.98793552]
[1734419699815,7.23556377,216.1,216.08,4.98793552]
[1734419700017,7.23556377,216.1,216.06,4.4341]
[1734419700217,7.23556377,216.1,216.07,4.98072644]
[1734419700422,7.23556377,216.1,216.08,4.98072644]
[1734419700623,7.23556377,216.1,216.06,4.4341]
[1734419700823,7.23556377,216.08,216.07,4.98045453]
[1734419701026,7.23556377,216.1,216.07,4.98045453]
[1734419701227,7.23556377,216.1,216.08,4.98045453]
[1734419701525,7.23556377,216.1,216.05,2.12]
[1734419701722,7.23556377,216.1,216.06,4.97987015]
[1734419701923,7.23556377,216.1,216.07,4.97987015]
[1734419702122,7.23556377,216.1,216.05,2.12]
[1734419702324,7.23556377,216.1,216.06,4.97992158]
[1734419702524,2.3139,216.09,216.07,4.97992158]
[1734419702727,2.3139,216.09,216.05,2.12]
[1734419703027,2.3139,216.09,216.06,4.97922191]
[1734419703227,2.3139,216.09,216.07,4.97922191]
[1734419703428,2.3139,216.09,216.05,4.4343]
[1734419703631,1.5783,216.14,216.06,4.97947552]
[1734419703927,9.54936377,216.11,216.06,2.3142]
[1734419704126,9.54936377,216.11,216.07,4.97914917]
[1734419704324,9.54936377,216.11,216.06,2.3142]
[1734419704524,2.3138,216.11,216.08,4.97806026]
[1734419704727,2.3138,216.11,216.06,2.3142]
[1734419704728,9.54936377,216.1,216.06,2.3142]
[1734419704927,9.54936377,216.1,216.07,4.97707292]
[1734419705128,9.54936377,216.1,216.08,4.97707292]
[1734419705330,9.54936377,216.1,216.06,2.3142]
[1734419705530,7.23556377,216.1,216.07,4.97700917]
[1734419705832,2.314,216.09,216.08,4.97700917]
[1734419707129,2.314,216.09,216.05,2.12]
[1734419707327,5.56803672,216.13,216.06,4.97788376]
[1734419707524,7.23556377,216.07,216.01,2.12]
[1734419707730,7.23556377,216.04,216.02,4.98004451]
[1734419707924,7.23556377,216.04,216.03,4.98004451]
[1734419708134,9.55016377,216.04,216.03,4.98004451]
[1734419708331,7.23556377,216.04,215.97,2.33049]
[1734419708531,7.23556377,216.01,215.97,2.33049]
[1734419708932,2.12,216.09,215.97,2.33049]
[1734419709232,7.23556377,216.04,215.97,2.33049]
[1734419709629,7.23556377,216.02,215.98,4.435]
[1734419709934,7.23556377,216.02,215.98,2.12]
[1734419711530,9.55026377,216.02,215.98,2.12]
[1734419712339,9.55026377,216.02,215.97,0.21049]
[1734419712539,9.55026377,216.02,215.97,2.33049]
[1734419712737,7.23556377,216.02,215.97,2.33049]
[1734419712938,2.3148,216.01,215.97,2.33049]
[1734419714039,2.3148,216.01,215.97,0.21049]
[1734419715937,2.3144,216.05,215.97,0.21049]
[1734419716131,2.12,216.08,215.98,7.23556377]
[1734419716438,7.23556377,216.06,215.98,7.23556377]
[1734419717535,9.54986377,216.06,216.01,2.3147]
[1734419717735,9.54986377,216.06,216.01,4.4347]
[1734419718436,7.23556377,216.06,216.01,2.12]
[1734419718631,2.3144,216.05,216.01,2.12]
[1734419720236,2.3145,216.04,216.01,2.12]
[1734419721433,9.55006377,216.04,215.99,2.315]
[1734419721634,7.23556377,216.01,215.92,2.12]
[1734419721840,7.23556377,215.99,215.93,4.91048051]
[1734419722039,7.23556377,215.99,215.94,4.91048051]
[1734419722232,7.23556377,215.99,215.95,4.91048051]
[1734419722436,7.23556377,215.99,215.96,4.91048051]
[1734419722637,7.23556377,215.99,215.94,4.4354]
[1734419723136,7.23556377,215.99,215.95,4.91042558]
[1734419723338,7.23556377,215.99,215.94,4.4354]
[1734419723541,9.55056377,215.99,215.95,7.02890109]
[1734419723837,9.55056377,215.99,215.95,2.12]
[1734419724233,7.23556377,215.99,215.95,2.12]
[1734419724433,7.23556377,215.99,215.92,0.27727]
[1734419724635,7.23556377,215.95,215.93,4.9075074]
[1734419724934,19.1721,216.05,215.92,0.27727]
[1734419724935,1.6098,216.04,215.92,0.27727]
[1734419725140,3.7298,216.04,215.93,12.14400933]
[1734419725335,7.23556377,215.99,215.94,4.90844556]
[1734419725639,3.7298,216.04,215.95,7.22384556]
[1734419725841,7.23556377,215.99,215.95,4.4354]
[1734419726945,7.23556377,215.99,215.96,2.3153]
[1734419727137,2.3149,216.01,215.96,2.3153]
[1734419727337,13.9,216.15,215.95,2.12]
[1734419727338,13.9,216.13,215.95,2.12]
[1734419727533,3.55625739,216.12,216.03,2.3146]
[1734419727745,7.23556377,216.09,216.03,4.4346]
[1734419728643,9.54946377,216.09,216.03,4.4346]
[1734419728841,7.23556377,216.07,216.03,4.4346]
[1734419730246,7.23556377,216.07,216.03,2.12]
[1734419730944,7.23556377,216.05,216.03,2.12]
[1734419731444,7.23556377,216.05,215.99,2.12]
[1734419731643,7.23556377,216.02,215.99,2.12]
[1734419732540,7.23556377,216.02,215.98,2.315]
[1734419732737,7.23556377,216.02,215.98,2.12]
[1734419733439,9.55026377,216.02,215.98,2.12]
[1734419733836,9.55026377,216.02,215.97,4.4352]
[1734419734048,7.23556377,216.0,215.97,4.4352]
[1734419734643,7.23556377,216.0,215.97,2.12]
[1734419734943,9.55046377,216.0,215.97,2.12]
[1734419736443,7.23556377,215.98,215.97,2.12]
[1734419737043,9.55066377,215.98,215.97,2.12]
[1734419737445,9.55066377,215.98,215.93,2.12]
[1734419737645,9.55066377,215.98,215.94,4.90290265]
[1734419737843,9.55066377,215.98,215.93,2.12]
[1734419738949,9.55066377,215.98,215.92,2.59297]
[1734419739146,9.55066377,215.98,215.93,7.02334096]
[1734419739442,9.55066377,215.98,215.93,2.12]
[1734419739740,9.55066377,215.98,215.92,2.59297]
[1734419739741,2.3155,215.94,215.92,0.27727]
[1734419739947,7.23556377,215.94,215.93,4.90353422]
[1734419740148,7.23556377,215.94,215.92,0.27727]
[1734419741439,2.3156,215.93,215.92,0.27727]
[1734419742046,2.3156,215.93,215.9,2.12]
[1734419742243,2.3156,215.93,215.88,2.3161]
[1734419742451,1.5633,216.02,215.89,4.90458799]
[1734419742452,9.55136377,215.92,215.89,4.90458799]
[1734419742642,9.55136377,215.92,215.88,2.12]
[1734419742843,9.55136377,215.92,215.89,4.90477883]
[1734419743252,9.55136377,215.92,215.87,2.12]
[1734419743449,9.55136377,215.92,215.88,4.90423254]
[1734419743644,9.55136377,215.92,215.88,9.80846243]
[1734419743950,9.55136377,215.92,215.88,4.90423254]
[1734419745551,9.55136377,215.92,215.87,4.4363]
[1734419745752,9.55136377,215.92,215.88,4.90362635]
[1734419746054,9.55136377,215.92,215.87,4.4363]
[1734419746055,7.23556377,215.9,215.87,4.4363]
[1734419746354,9.55136377,215.92,215.87,4.4363]
[1734419746654,9.55136377,215.92,215.88,9.80485109]
[1734419746951,9.55136377,215.92,215.88,4.90261206]
[1734419747655,2.3155,215.94,215.89,4.90170325]
[1734419747955,2.3155,215.94,215.88,7.21871206]
[1734419748153,2.3155,215.94,215.89,4.90196919]
[1734419748354,2.3155,215.94,215.88,7.21871206]
[1734419748554,2.3155,215.94,215.89,4.90209226]
[1734419748854,2.3155,215.94,215.89,2.316]
[1734419750757,7.96381047,215.94,215.89,2.316]
[1734419751355,7.96381047,215.94,215.9,4.90316127]
[1734419751549,7.96381047,215.94,215.89,2.316]
[1734419751757,7.96381047,215.94,215.9,4.90306862]
[1734419751955,15.19937424,215.94,215.89,2.316]
[1734419752164,15.19937424,215.94,215.9,4.90320757]
[1734419752456,7.23556377,215.94,215.91,4.90397577]
[1734419752654,7.23556377,215.94,215.9,2.3159]
[1734419752960,7.23556377,215.94,215.91,2.12]
[1734419753154,2.315,215.99,215.92,2.3156]
[1734419753357,7.23556377,215.97,215.92,2.3156]
[1734419754359,7.23556377,215.97,215.93,4.90337816]
[1734419754556,9.55076377,215.97,215.92,2.3156]
[1734419754853,9.55076377,215.97,215.93,4.90450921]
[1734419755057,9.55076377,215.97,215.92,2.3156]
[1734419755358,9.55076377,215.97,215.93,4.90449649]
[1734419755660,9.55076377,215.97,215.92,2.3156]
[1734419755856,9.55076377,215.97,215.93,4.90586]
[1734419756157,9.55076377,215.97,215.92,2.3156]
[1734419756353,9.55076377,215.97,215.93,4.90640849]
[1734419756555,9.55076377,215.97,215.92,2.3156]
[1734419756755,9.55076377,215.97,215.93,4.9063745]
[1734419756957,9.55076377,215.97,215.92,2.3156]
[1734419757160,7.23556377,215.97,215.93,4.90646799]
[1734419757457,7.23556377,215.97,215.93,2.3156]
[1734419761458,7.23556377,215.97,215.91,2.12]
[1734419761459,2.3149,216.0,215.95,2.3153]
[1734419761665,7.23556377,215.98,215.95,4.4353]
[1734419761959,2.3149,216.0,215.95,2.12]
[1734419762159,2.3148,216.02,215.96,2.3153]
[1734419762367,7.23556377,216.0,215.96,2.3153]
[1734419763966,7.23556377,215.98,215.96,2.3153]
[1734419764168,7.23556377,215.98,215.95,2.12]
[1734419764464,5.58169268,216.01,215.95,2.12]
[1734419764465,7.23556377,215.96,215.95,2.12]
[1734419765567,7.23556377,215.96,215.92,2.12]
[1734419765762,7.23556377,215.96,215.93,4.91154961]
[1734419765958,7.23556377,215.96,215.91,2.12]
[1734419766164,7.23556377,215.94,215.92,4.91154368]
[1734419766364,7.23556377,215.94,215.9,2.12]
[1734419766563,7.23556377,215.94,215.91,4.91494766]
[1734419766764,7.23556377,215.94,215.92,4.91494766]
[1734419766967,7.23556377,215.94,215.9,2.12]
[1734419767167,7.23556377,215.94,215.91,4.91519786]
[1734419767363,7.23556377,215.94,215.9,2.12]
[1734419767571,2.3157,215.93,215.91,4.91514295]
[1734419767769,2.3157,215.93,215.9,2.12]
[1734419767970,2.3157,215.93,215.91,4.91527642]
[1734419768168,2.3157,215.93,215.9,2.12]
[1734419768372,2.3157,215.93,215.91,4.915151]
[1734419768569,2.3157,215.93,215.9,2.12]
[1734419768769,9.55126377,215.92,215.9,2.12]
[1734419769265,7.23556377,215.92,215.87,0.35892]
[1734419769468,9.55176377,215.89,215.88,4.91609562]
[1734419769872,9.55176377,215.89,215.87,0.35892]
[1734419769873,7.23556377,215.89,215.87,0.35892]
[1734419770069,3.1377,215.94,215.87,0.35892]
[1734419770070,2.3162,215.88,215.87,0.35892]
[1734419770266,7.23556377,215.88,215.87,0.35892]
[1734419772676,9.55176377,215.88,215.87,0.35892]
[1734419773571,2.3166,215.84,215.79,2.3171]
[1734419773771,7.23556377,215.83,215.79,2.3171]
[1734419773975,7.23556377,215.83,215.78,5.9532]
[1734419774275,7.23556377,215.83,215.78,4.4372]
[1734419774476,7.23556377,215.83,215.78,2.12]
[1734419774780,7.23556377,215.81,215.75,3.0758]
[1734419775077,7.23556377,215.81,215.75,5.1958]
[1734419775276,9.55276377,215.79,215.74,2.12]
[1734419777674,7.23556377,215.77,215.74,2.12]
[1734419777876,7.23556377,215.77,215.7,3.1852]
[1734419778176,7.23556377,215.75,215.71,2.12]
[1734419778882,7.23556377,215.78,215.71,9.35556377]
[1734419779476,9.55276377,215.78,215.73,2.3178]
[1734419779680,7.23556377,215.78,215.73,2.3178]
[1734419780583,9.55286377,215.78,215.73,2.3178]
[1734419780777,1.51,215.83,215.73,2.3178]
[1734419780975,7.23556377,215.78,215.73,2.3178]
[1734419781178,7.23556377,215.78,215.74,2.3177]
[1734419781780,7.23556377,215.8,215.75,2.3175]
[1734419782084,7.23556377,215.8,215.75,4.4375]
[1734419783188,7.23556377,215.78,215.75,2.12]
[1734419784886,7.23556377,215.78,215.75,4.4376]
[1734419787184,7.23556377,215.78,215.75,2.12]
[1734419787391,7.23556377,215.76,215.74,2.12]
[1734419787894,2.3169,215.81,215.74,2.12]
[1734419788089,7.23556377,215.78,215.74,2.12]
[1734419788486,7.23556377,215.78,215.74,4.4377]
[1734419788987,2.12,215.87,215.74,2.12]
[1734419789189,7.23556377,215.82,215.77,2.3173]
[1734419789384,7.23556377,215.82,215.78,2.12]
[1734419790699,9.55236377,215.82,215.78,2.12]
[1734419790991,5.3637,215.88,215.78,2.12]
[1734419790992,7.23556377,215.8,215.78,2.12]
[1734419791201,9.55266377,215.8,215.78,2.12]
[1734419792593,9.55246377,215.82,215.78,2.12]
[1734419792898,7.23556377,215.84,215.78,2.12]
[1734419794398,2.3167,215.83,215.78,4.4372]
[1734419796297,12.67422857,215.84,215.78,4.4372]
[1734419796603,2.3168,215.82,215.78,2.12]
[1734419796999,7.23556377,215.82,215.78,2.12]
[1734419797296,2.3169,215.81,215.78,2.12]
[1734419798502,7.23556377,215.82,215.74,7.23556377]
[1734419798801,2.3171,215.8,215.75,4.4375]
[1734419800501,2.3172,215.79,215.75,2.12]
[1734419801404,7.23556377,215.81,215.75,4.4376]
[1734419801604,7.23556377,215.81,215.75,2.12]
[1734419802402,9.55256377,215.81,215.77,2.3173]
[1734419802603,9.55256377,215.81,215.75,2.12]
[1734419802806,7.23556377,215.81,215.75,2.12]
[1734419803806,2.3172,215.79,215.75,2.12]
[1734419805005,7.23556377,215.78,215.71,3.1342]
[1734419805205,7.23556377,215.78,215.74,2.12]
[1734419806497,7.23556377,215.76,215.73,2.12]
[1734419807402,9.55306377,215.76,215.73,2.12]
[1734419807602,7.23556377,215.76,215.73,2.12]
[1734419810204,7.23556377,215.76,215.74,4.86454205]
[1734419810411,7.23556377,215.76,215.73,2.12]
[1734419810596,7.23556377,215.76,215.74,4.86643979]
[1734419810803,7.23556377,215.76,215.73,2.12]
[1734419811107,7.23556377,215.76,215.74,4.86655347]
[1734419811406,7.23556377,215.76,215.73,2.12]
[1734419811803,7.23556377,215.76,215.74,4.86970901]
[1734419812003,7.23556377,215.76,215.73,2.12]
[1734419812508,7.23556377,215.76,215.73,4.4378]
[1734419812705,2.3172,215.79,215.73,2.12]
[1734419812901,5.4386648,215.84,215.73,2.12]
[1734419812902,7.5586648,215.84,215.74,4.87256053]
[1734419813110,7.23556377,215.8,215.75,4.87256053]
[1734419813400,7.23556377,215.8,215.76,4.87256053]
[1734419813606,7.23556377,215.8,215.77,4.87256053]
[1734419813809,9.55256377,215.8,215.76,2.3174]
[1734419814103,9.55256377,215.8,215.77,4.87477649]
[1734419814299,7.23556377,215.8,215.78,4.87477649]
[1734419814608,7.23556377,215.8,215.76,2.3174]
[1734419814809,7.23556377,215.8,215.77,4.87924457]
[1734419815009,7.23556377,215.8,215.76,2.3174]
[1734419815308,7.23556377,215.8,215.77,4.87936698]
[1734419815503,7.23556377,215.8,215.76,2.3174]
[1734419815704,7.23556377,215.8,215.77,4.8811169]
[1734419815905,7.23556377,215.8,215.76,2.3174]
[1734419816105,7.23556377,215.8,215.77,4.88109649]
[1734419816304,7.23556377,215.8,215.78,4.88109649]
[1734419816506,2.3169,215.81,215.77,2.3173]
[1734419816810,9.55246377,215.81,215.78,7.00382108]
[1734419817004,9.55246377,215.81,215.78,2.12]
[1734419817506,7.23556377,215.79,215.78,2.12]
[1734419818305,7.23556377,215.79,215.78,7.00766133]
[1734419820809,7.23556377,215.79,215.78,7.00929039]
[1734419822309,7.23556377,215.79,215.78,7.00918407]
[1734419822506,7.23556377,215.79,215.78,7.00906464]
[1734419822706,7.23556377,215.79,215.78,2.12]
[1734419822916,7.23556377,215.79,215.78,7.00801706]
[1734419823613,7.23556377,215.81,215.78,7.00801706]
[1734419823910,9.55236377,215.83,215.79,4.88801706]
[1734419824113,9.55236377,215.83,215.8,4.88801706]
[1734419824310,9.55236377,215.83,215.78,4.4372]
[1734419824611,9.55236377,215.83,215.79,4.88616795]
[1734419824806,9.55236377,215.83,215.8,4.88616795]
[1734419825009,2.3167,215.84,215.79,2.3171]
[1734419825210,8.83976377,215.88,215.8,12.12077009]
[1734419825410,8.83976377,215.88,215.81,4.88520632]
[1734419825705,8.83976377,215.88,215.82,7.0034178]
[1734419825908,7.23556377,215.88,215.83,4.8834178]
[1734419826101,7.23556377,215.88,215.84,4.8834178]
[1734419826305,7.23556377,215.88,215.82,2.12]
[1734419826505,2.3163,215.87,215.83,4.88086105]
[1734419826709,2.3163,215.87,215.84,4.88086105]
[1734419827006,2.3163,215.87,215.82,4.4368]
[1734419827208,2.3163,215.87,215.83,4.88138842]
[1734419827506,2.3163,215.87,215.84,4.88138842]
[1734419827811,2.3163,215.87,215.85,4.87917251]
[1734419828104,2.3162,215.88,215.83,2.3167]
[1734419828305,2.3162,215.88,215.84,4.87712483]
[1734419828505,2.3162,215.88,215.85,4.87712483]
[1734419828705,2.3162,215.88,215.83,2.3167]
[1734419829012,2.3162,215.88,215.84,4.87699745]
[1734419829211,2.3162,215.88,215.83,2.3167]
[1734419829507,2.3162,215.88,215.84,4.87386714]
[1734419829707,2.12,215.98,215.87,2.3163]
[1734419829904,7.23556377,215.95,215.88,2.12]
[1734419830107,7.23556377,215.95,215.89,4.87111426]
[1734419830306,9.55096377,215.95,215.9,2.3159]
[1734419830608,6.8263,216.03,215.89,7.23556377]
[1734419830803,7.23556377,215.96,215.9,4.86650577]
[1734419831001,9.55086377,215.96,215.91,2.3158]
[1734419831206,9.55086377,215.96,215.92,2.12]
[1734419831403,7.23556377,215.94,215.92,2.12]
[1734419831602,2.3153,215.96,215.92,2.12]
[1734419832608,7.23556377,215.97,215.92,2.12]
[1734419832809,7.23556377,215.99,215.92,2.12]
[1734419833306,7.23556377,215.99,215.94,2.3155]
[1734419834112,5.68839471,216.02,215.94,2.3155]
[1734419834413,7.23556377,215.99,215.94,2.3155]
[1734419835409,2.3149,216.0,215.95,2.3154]
[1734419835707,2.3149,216.0,215.96,2.12]
[1734419835915,7.23556377,216.01,215.96,4.4353]
[1734419836414,7.23556377,216.01,215.96,2.12]
[1734419836711,2.3149,216.0,215.96,2.12]
[1734419837109,2.3147,216.03,215.97,2.3152]
[1734419837310,7.23556377,216.06,215.99,7.23556377]
[1734419837612,7.23556377,216.06,216.01,2.3147]
[1734419837814,7.23556377,216.06,216.0,2.12]
[1734419838016,7.23556377,216.08,216.01,7.23556377]
[1734419838210,9.54966377,216.08,216.03,2.3146]
[1734419838412,9.54966377,216.08,216.04,2.12]
[1734419838608,2.3141,216.08,216.04,2.12]
[1734419838807,9.54966377,216.08,216.04,2.12]
[1734419839114,7.23556377,216.1,216.04,2.12]
[1734419839307,1.6142,216.18,216.05,7.23556377]
[1734419839308,2.12,216.17,216.05,7.23556377]
[1734419839516,7.23556377,216.13,216.05,7.23556377]
[1734419839709,7.23556377,216.13,216.06,2.3142]
[1734419840218,7.23556377,216.12,216.06,2.3142]
[1734419840609,7.23556377,216.12,216.04,2.12]
[1734419840816,7.23556377,216.08,216.04,2.12]
[1734419841708,7.23556377,216.08,215.96,4.80997519]
[1734419841909,7.23556377,216.04,215.96,4.80997519]
[1734419842113,7.23556377,216.04,215.95,4.694]
[1734419842114,7.23556377,216.04,215.97,9.35556377]
[1734419842614,2.12,216.1,215.97,9.35556377]
[1734419842615,3.209,216.09,215.97,9.35556377]
[1734419842817,7.23556377,216.05,215.99,7.23556377]
[1734419843409,7.23556377,216.07,215.99,7.23556377]
[1734419843616,9.54976377,216.07,216.01,7.23556377]
[1734419843916,2.3142,216.07,216.02,2.12]
[1734419844309,1.5735,216.09,216.03,7.23556377]
[1734419844615,3.8875,216.09,216.03,9.55006377]
[1734419847522,2.314,216.08,216.03,7.23556377]
[1734419848526,2.3141,216.07,216.03,7.23556377]
[1734419849016,2.3144,216.05,216.04,2.12]
[1734419849321,7.23556377,216.08,216.04,2.12]
[1734419849618,1.5735,216.09,216.04,2.12]
[1734419849619,2.3143,216.05,216.04,2.12]
[1734419849919,2.3143,216.05,216.02,7.23556377]
[1734419850121,2.3143,216.05,216.03,2.12]
[1734419851722,8.80906377,216.09,216.03,2.12]
[1734419853124,2.3145,216.04,216.03,2.12]
[1734419858325,2.3147,216.02,216.0,9.35556377]
[1734419860136,2.3146,216.03,216.0,9.35556377]
[1734419860529,7.23556377,216.08,216.0,9.35556377]
[1734419860932,2.3143,216.06,216.0,9.35556377]
[1734419861129,7.23556377,216.08,216.0,9.35556377]
[1734419861330,7.23556377,216.08,216.01,2.12]
[1734419862220,2.3147,216.03,216.01,2.12]
[1734419863224,2.3147,216.02,216.01,2.12]
[1734419863421,2.3147,216.02,216.0,9.35556377]
[1734419865426,8.80906377,216.09,216.01,2.3148]
[1734419865627,8.80906377,216.09,216.02,7.23556377]
[1734419865828,7.23556377,216.12,216.04,7.23556377]
[1734419866023,7.23556377,216.12,216.05,2.12]
[1734419866221,7.23556377,216.12,216.06,7.23556377]
[1734419867425,2.3139,216.09,216.06,7.23556377]
[1734419867626,7.23556377,216.12,216.05,2.12]
[1734419867928,5.44787662,216.13,216.06,7.23556377]
[1734419868130,1.522,216.14,216.1,7.23556377]
[1734419868524,2.3137,216.12,216.1,7.23556377]
[1734419868729,2.3137,216.12,216.09,2.12]
[1734419868730,1.522,216.14,216.09,2.12]
[1734419869932,2.3138,216.11,216.09,2.12]
[1734419872531,2.3135,216.13,216.09,2.12]
[1734419874038,7.23556377,216.15,216.09,2.12]
[1734419874334,7.23556377,216.13,216.09,2.12]
[1734419875538,2.3138,216.1,216.09,2.12]
[1734419880849,7.23556377,216.11,215.96,5.64549873]
[1734419881047,7.23556377,216.09,216.01,7.23556377]
[1734419881252,7.23556377,216.09,216.02,6.95370717]
[1734419881540,7.23556377,216.09,216.03,4.85370717]
[1734419881742,7.23556377,216.09,216.02,2.1]
[1734419881945,2.3144,216.05,216.02,2.1]
[1734419882647,2.3144,216.05,216.03,4.85910859]
[1734419882849,2.3144,216.05,216.02,2.1]
[1734419883346,2.3145,216.04,216.01,7.23556377]
[1734419883538,7.23556377,216.07,216.02,2.1]
[1734419883747,7.23556377,216.07,216.0,2.1]
[1734419884345,7.23556377,216.07,215.96,5.64549873]
[1734419884547,7.23556377,216.07,215.97,6.96145623]
[1734419884746,7.23556377,216.05,215.98,4.86145623]
[1734419884943,7.23556377,216.05,215.97,9.33556377]
[1734419885251,7.23556377,216.05,215.98,4.86185746]
[1734419885444,7.23556377,216.05,215.97,9.33556377]
[1734419885639,7.23556377,216.05,215.98,4.86156412]
[1734419885841,7.23556377,216.05,215.97,11.65076377]
[1734419886049,7.23556377,216.07,215.99,7.23556377]
[1734419886645,2.3147,216.02,215.99,7.23556377]
[1734419888250,7.23556377,216.07,216.01,7.23556377]
[1734419888451,2.3145,216.04,216.01,7.23556377]
[1734419888649,2.3145,216.04,216.01,9.35556377]
[1734419889654,2.3146,216.03,216.01,9.35556377]
[1734419892361,2.3147,216.02,216.01,2.12]
[1734419892559,2.3147,216.02,215.99,7.23556377]
[1734419893264,2.3146,216.03,215.99,7.23556377]
[1734419894159,3.0588,216.11,216.01,7.23556377]
[1734419894160,5.1788,216.11,216.01,7.23556377]
[1734419894461,7.23556377,216.09,216.03,2.3145]
[1734419894660,7.23556377,216.09,216.02,2.12]
[1734419894661,2.3142,216.07,216.02,2.12]
[1734419895168,2.3142,216.07,216.02,4.4346]
[1734419895459,2.314,216.09,216.03,12.08988908]
[1734419895663,2.314,216.09,216.05,7.23556377]
[1734419895864,7.23556377,216.13,216.06,2.12]
[1734419896156,2.3138,216.11,216.06,2.12]
[1734419896565,7.23556377,216.13,216.06,2.12]
[1734419896760,7.76693715,216.16,216.07,7.23556377]
[1734419896761,2.3138,216.11,216.07,7.23556377]
[1734419896964,7.23556377,216.15,216.07,7.23556377]
[1734419897866,2.3136,216.13,216.07,9.54956377]
[1734419899664,7.23556377,216.15,216.07,9.54956377]
[1734419899865,2.3136,216.12,216.07,9.54956377]
[1734419903067,7.23556377,216.15,216.07,7.23556377]
[1734419903265,7.23556377,216.13,216.06,2.12]
[1734419903663,2.3139,216.1,216.04,2.3144]
[1734419903972,2.3139,216.1,215.95,8.71746823]
[1734419903973,7.23556377,216.13,216.05,14.18170684]
[1734419904177,7.23556377,216.13,216.06,2.1]
[1734419905074,2.3139,216.1,216.06,2.1]